[Event "XLIV Barbera del Valles-A 2022"]
[Site "Barbera del Valles"]
[Date "2022.07.06"]
[Round "3.4"]
[White "Narciso Dublan, Marc"]
[Black "Gourav Nigam"]
[Result "1-0"]
[ECO "B23"]
[WhiteElo "2461"]
[BlackElo "1803"]
[Annotator "TA"]
[PlyCount "57"]
[EventDate "2022.07.04"]
[EventType "swiss"]
[EventCountry "ESP"]
[SourceTitle "playchess.com"]
[Source "ChessBase"]
[SourceQuality "1"]
[TimeControl "5400+30"]

{[%evp 9,57,16,45,38,35,35,31,28,33,26,33,23,20,19,27,0,38,44,33,0,30,29,36,24,38,38,39,52,53,12,13,14,65,18,25,36,209,187,364,349,351,344,320,337,447,450,482,479,649,410]} 1. e4 {[%emt 0:00:06]} c5 {[%emt 0:00:09]} 2. Nc3 {[%emt 0:00:10]} Nc6 {[%emt 0:00:10]} 3. Bb5 {[%emt 0:00:11]} Nd4 {[%emt 0:00:09]} 4. Nf3 {[%emt 0:00:05]} Nxb5 {[%emt 0:04:35]} 5. Nxb5 {[%emt 0:00:04]} g6 {[%emt 0:00:14]} 6. d4 {[%emt 0:06:35] Black must now prevent 0-0. B23: Closed Sicilian: Lines without g3.} Bg7 {[%emt 0:00:21]} 7. c4 {[%emt 0:04:45]} cxd4 {[%emt 0:05:10]} 8. Nfxd4 {[%emt 0:00:30] White is slightly better.} d6 {[%emt 0:00:14]} 9. O-O {[%emt 0:00:57]} Nf6 {[%emt 0:00:19] [#]} 10. Qe2 $146 {[%emt 0:02:35]} ({Predecessor:} 10. f3 O-O 11. Be3 Bd7 12. Nc3 Bc6 13. Qd2 Re8 14. Rfd1 Nd7 15. Rab1 Ne5 16. b3 {1-0 (34) Grischuk,A (2794)-Potapov,P (2471) Sochi 2015}) 10... O-O {[%emt 0:01:09]} 11. Rd1 {[%emt 0:01:14]} Bd7 {[%emt 0:07:26]} 12. Nc3 {[%emt 0:04:59]} Rc8 {[%emt 0:03:49]} 13. b3 {[%emt 0:04:09]} a6 {[%emt 0:03:46][%cal Ob7b5]} 14. Bb2 {[%emt 0:00:17]} e6 {[%emt 0:07:27]} (14... b5 $5) 15. Nf3 {[%emt 0:16:36]} Qc7 {[%emt 0:04:07]} 16. Ba3 {[%emt 0:01:04]} Ne8 {[%emt 0:09:10]} (16... Qa5 17. Bxd6 (17. Bb2 Bc6 $11) 17... Rfd8 18. Be5 $16) 17. Rac1 {[%emt 0:01:10][%cal Oe4e5]} b5 {[%emt 0:04:45]} 18. e5 $36 {[%emt 0:12:50][%mdl 2048] White is pushing.} Qa5 {[%emt 0:09:17]} 19. Bb2 {[%emt 0:05:44]} (19. Bxd6 Nxd6 20. Rxd6 Bc6 $15) 19... bxc4 {[%emt 0:05:29]} 20. bxc4 {[%emt 0:00:25]} Qc7 {[%emt 0:00:24]} ({Better is} 20... Qb4 $11) 21. Ne4 {[%emt 0:07:52] White is more active.} (21. Ba3 $14) 21... dxe5 $11 {[%emt 0:02:44]} 22. Ba3 $1 {[%emt 0:00:23]} f5 $2 {[%emt 0:00:51] [#] Loses the game.} (22... Bh6 $14) 23. Nc5 $1 $18 {[%emt 0:17:03] Pair of Knights!} ({Stronger than} 23. Bxf8 Bxf8 24. Neg5 e4 $11) 23... Rd8 {[%emt 0:11:12]} (23... Rf7 {was worth a try.} 24. Rb1 (24. Nxd7 Rxd7 25. Rxd7 Qxd7 $11) 24... Bc6) 24. Nxd7 {[%emt 0:01:53]} Rxd7 {[%emt 0:00:10]} 25. Rxd7 {[%emt 0:00:23]} Qxd7 {[%emt 0:00:04]} 26. Bxf8 {[%emt 0:00:18]} ({But not} 26. Nxe5 Qc7 $18) 26... Bxf8 {[%emt 0:00:32]} 27. Nxe5 {[%emt 0:00:29] White is clearly winning.} Qc7 {[%emt 0:01:04]} 28. c5 {[%emt 0:01:34]} Bd6 {[%emt 0:01:15]} 29. Nf3 {[%emt 0:02:06] Weighted Error Value: White=0.08 (flawless) /Black=0.38} 1-0

[Event "XLIV Barbera del Valles-A 2022"]
[Site "Barbera del Valles"]
[Date "2022.07.06"]
[Round "3.5"]
[White "Shah, Vishwa"]
[Black "Moskalenko, Viktor"]
[Result "0-1"]
[ECO "C00"]
[WhiteElo "1931"]
[BlackElo "2457"]
[Annotator "TA"]
[PlyCount "64"]
[EventDate "2022.07.04"]
[EventType "swiss"]
[EventCountry "ESP"]
[SourceTitle "playchess.com"]
[Source "ChessBase"]
[SourceQuality "1"]
[TimeControl "5400+30"]

{[%evp 18,64,-12,-13,-7,-8,-19,-20,0,0,0,-18,-22,-23,-26,-18,-23,-56,-35,-93,-96,-99,-95,-98,-91,-101,-101,-227,-227,-395,-430,-438,-389,-437,-430,-402,-376,-699,-739,-717,-710,-726,-698,-5602,-5514,-2465,-1400,-1795,-1169]} 1. e4 {[%emt 0:00:01]} e6 {[%emt 0:00:28]} 2. d3 {[%emt 0:00:05]} d5 {[%emt 0:00:12]} 3. Nd2 {[%emt 0:00:06]} Nf6 {[%emt 0:00:20]} 4. Ngf3 {[%emt 0:00:07]} Nc6 {[%emt 0:04:21]} 5. g3 {[%emt 0:01:51]} dxe4 {[%emt 0:02:22]} 6. dxe4 {[%emt 0:00:41]} Bc5 {[%emt 0:00:08]} 7. Bg2 {[%emt 0:00:21]} e5 {[%emt 0:00:48]} 8. O-O {[%emt 0:00:31]} O-O {[%emt 0:01:46]} 9. c3 {[%emt 0:00:45]} a5 {[%emt 0:00:11]} 10. Qc2 {[%emt 0:01:04]} b5 {[%emt 0:43:01] C00: French: Unusual White 2nd moves.} 11. h3 {[%emt 0:20:21] [#]} a4 $146 {[%emt 0:07:14]} ({Predecessor:} 11... Be6 12. Kh2 Qe7 13. a4 b4 14. Ng5 Bc8 15. Nb3 Bb6 16. Rd1 h6 17. Nf3 Be6 18. c4 {0-1 (31) Cherenkova,K (2282)-Jorczik,J (2359) Pardubice 2008}) 12. Rd1 {[%emt 0:00:09][%cal Od2c4]} Qe7 {[%emt 0:02:33] The position is equal.} 13. Nf1 {[%emt 0:02:02]} Rd8 {[%emt 0:01:28]} 14. Bg5 {[%emt 0:16:59]} Rxd1 {[%emt 0:03:44]} 15. Qxd1 {[%emt 0:06:04]} h6 {[%emt 0:05:52]} 16. Be3 {[%emt 0:05:01]} Be6 {[%emt 0:01:23]} (16... Nxe4 $2 17. Qd5 Ra6 18. Qxe4 $18) 17. Nh4 {[%emt 0:00:31]} Rd8 {[%emt 0:00:40]} 18. Qf3 {[%emt 0:00:34]} (18. Qc2 $15) 18... Na5 $17 {[%emt 0:04:01] 0x0.0008628f18d5dp-1022s more active pieces.} 19. Nf5 {[%emt 0:07:24]} Bxf5 {[%emt 0:00:12]} 20. exf5 {[%emt 0:00:18]} e4 {[%emt 0:07:30]} 21. Qe2 {[%emt 0:00:27]} Nc4 {[%emt 0:00:08]} 22. Re1 {[%emt 0:04:45] White does not recover from this.} (22. Bxc5 $17 {was necessary.} Qxc5 23. g4) 22... Bxe3 $19 {[%emt 0:01:44]} 23. Nxe3 {[%emt 0:00:13] [#]} (23. fxe3 {only move.} Rd3 24. a3) 23... Rd2 {[%emt 0:00:15]} 24. Qf1 {[%emt 0:00:10]} Nxe3 {[%emt 0:01:12]} 25. Rxe3 {[%emt 0:00:01]} Rxb2 {[%emt 0:00:33]} 26. Bxe4 {[%emt 0:04:49]} Nxe4 {[%emt 0:00:53]} 27. Qe1 $2 {[%emt 0:00:13] [#]} (27. Qg2 Rxa2 28. Rxe4) 27... Qa3 $1 {[%emt 0:04:17][%cal Oa3a2] Black is clearly winning.} 28. Rxe4 {[%emt 0:00:07]} Qxa2 {[%emt 0:00:04] Strongly threatening ...Rb1.} 29. Re8+ {[%emt 0:01:00]} Kh7 {[%emt 0:00:01]} 30. Qe5 {[%emt 0:05:18]} Rxf2 {[%emt 0:02:34] ( -> ...Rg2+)} 31. Qe4 {[%emt 0:00:13] Against Rg2+} Qc2 {[%emt 0:00:24]} 32. Qa8 {[%emt 0:04:37]} Rxf5 {[%emt 0:00:19] Weighted Error Value: White=0.97/Black=0.22 (precise)} 0-1

[Event "XLIV Barbera del Valles-A 2022"]
[Site "Barbera del Valles"]
[Date "2022.07.06"]
[Round "3.6"]
[White "Munoz, Miguel"]
[Black "Vergara Jofre, Felipe"]
[Result "1/2-1/2"]
[ECO "B32"]
[WhiteElo "2408"]
[BlackElo "2151"]
[Annotator "TA"]
[PlyCount "120"]
[EventDate "2022.07.04"]
[EventType "swiss"]
[EventCountry "ESP"]
[SourceTitle "playchess.com"]
[Source "ChessBase"]
[SourceQuality "1"]
[TimeControl "5400+30"]

{[%evp 14,120,41,34,35,34,39,25,21,-28,-27,-22,-30,-21,-24,-25,-20,-18,-8,-15,-10,-20,-13,-5,-18,-25,-31,-31,-26,-35,0,0,0,0,0,-4,0,0,0,-19,-16,-21,-25,-18,0,0,0,0,0,0,0,0,0,0,0,0,0,0,46,46,46,47,54,14,15,8,8,8,42,19,89,89,218,0,0,0,0,0,0,0,0,0,0,0,0,0,0,0,0,0,0,0,0,0,0,0,0,0,0,0,0,0,0,0,0,0,0,0,0]} 1. e4 {[%emt 1:31:00]} c5 {[%emt 1:31:00]} 2. Nf3 {[%emt 0:00:30]} Nc6 {[%emt 0:00:30]} 3. d4 {[%emt 0:00:30]} cxd4 {[%emt 0:00:30]} 4. Nxd4 {[%emt 0:00:30]} e5 {[%emt 0:00:30]} 5. Nb5 {[%emt 0:00:30]} d6 {[%emt 0:00:30]} 6. N1c3 {[%emt 0:00:30]} a6 {[%emt 0:00:30]} 7. Na3 {[%emt 0:00:30]} Be7 {[%emt 0:00:30]} 8. Nc4 {[%emt 0:00:30]} b5 {[%emt 0:00:30] B32: Sicilian: Löwenthal and Kalashnikov Variations.} 9. Ne3 {[%emt 0:00:30]} ({Much worse is} 9. Qd5 Bb7 10. Ne3 b4 $15) 9... Nf6 {[%emt 0:00:30]} 10. Ned5 {[%emt 0:00:30]} O-O {[%emt 0:00:30] White has an edge.} 11. Nxe7+ {[%emt 0:00:30]} (11. Bd3 $142) 11... Nxe7 $11 {[%emt 0:00:30]} 12. Bg5 {[%emt 0:00:30]} b4 {[%emt 0:00:30]} 13. Bxf6 {[%emt 0:00:30]} bxc3 {[%emt 0:00:30]} 14. Bxe7 {[%emt 0:00:30]} Qxe7 {[%emt 0:00:30]} 15. bxc3 {[%emt 0:00:30] [#]} Be6 $146 {[%emt 0:00:30]} ({Predecessor:} 15... Bb7 16. Bd3 Rac8 17. c4 f5 18. exf5 Bxg2 19. Rg1 e4 20. Be2 Bf3 21. Qd5+ Kh8 {½-½ (27) Terletsky,O (2167)-Vypkhaniuk,I (2333) Lvov 2016}) 16. Bd3 {[%emt 0:00:30]} Rfc8 {[%emt 0:00:30]} 17. Qd2 {[%emt 0:00:30]} Qc7 {[%emt 0:00:30]} 18. a4 {[%emt 0:00:30]} a5 {[%emt 0:00:30]} 19. Bb5 {[%emt 0:00:30]} Qxc3 {[%emt 0:00:30]} 20. Qxc3 {[%emt 0:00:30]} Rxc3 {[%emt 0:00:30]} 21. Kd2 {[%emt 0:00:30]} Rcc8 {[%emt 0:00:30]} 22. Bd3 {[%emt 0:00:30]} Kf8 {[%emt 0:00:30]} 23. Rhb1 {[%emt 0:00:30]} Rcb8 {[%emt 0:00:30]} 24. Bb5 {[%emt 0:00:30]} Rb6 {[%emt 0:00:30]} 25. Bd3 {[%emt 0:00:30]} Rbb8 {[%emt 0:00:30]} 26. Rb5 {[%emt 0:00:30]} Bd7 {[%emt 0:00:30]} 27. Rb3 {[%emt 0:00:30]} Rxb3 {[%emt 0:00:30]} 28. cxb3 {[%emt 0:00:30][%mdl 4096] Endgame KRB-KRB} Be6 {[%emt 0:00:30]} 29. Rb1 {[%emt 0:00:30]} Rb8 {[%emt 0:00:30]} 30. Bb5 {[%emt 0:00:30]} d5 {[%emt 0:00:30]} 31. exd5 {[%emt 0:00:30]} Bxd5 {[%emt 0:00:30]} 32. g3 {[%emt 0:00:30]} Ke7 {[%emt 0:00:30]} 33. Kc3 {[%emt 0:00:30]} f5 {[%emt 0:00:30]} 34. Rd1 {[%emt 0:00:30]} Be6 {[%emt 0:00:30]} 35. Kb2 {[%emt 0:00:30]} Rd8 {[%emt 0:00:30]} (35... Rc8 $11) 36. Rxd8 $14 {[%emt 0:00:30]} Kxd8 {[%emt 0:00:30] KB-KB} 37. Kc3 {[%emt 0:00:30]} Kc7 $1 {[%emt 0:00:30]} 38. b4 {[%emt 0:00:30]} Kb6 {[%emt 0:00:30]} 39. f4 {[%emt 0:00:30]} e4 {[%emt 0:00:30]} 40. Be8 {[%emt 0:00:30]} g6 {[%emt 0:00:30]} 41. h4 {[%emt 0:00:30]} Bc8 {[%emt 0:00:30] [#]} (41... Ka6 $11) 42. Bf7 $1 $16 {[%emt 0:00:30]} Bd7 {[%emt 0:00:30]} (42... axb4+ $16 {might work better.} 43. Kxb4 e3) 43. bxa5+ $2 {[%emt 0:00:30]} (43. b5 $18) 43... Kxa5 $11 {[%emt 0:00:30] The position is equal.} 44. Bg8 {[%emt 0:00:30]} h6 {[%emt 0:00:30]} (44... Bxa4 $2 45. Bxh7 Be8 46. Kd4 $18) 45. Bh7 {[%emt 0:00:30]} Kxa4 {[%emt 0:00:30]} 46. Bxg6 {[%emt 0:00:30]} Ka3 {[%emt 0:00:30]} 47. g4 {[%emt 0:00:30]} fxg4 {[%emt 0:00:30]} 48. f5 {[%emt 0:00:30]} g3 {[%emt 0:00:30]} 49. f6 {[%emt 0:00:30] [#] Threatening mate with f7.} Be6 {[%emt 0:00:30] ( -> ...g2)} (49... g2 {gets mated.} 50. f7 Ka4 51. f8=Q Kb5 52. Qb8+ Ka6 53. Qd6+ Ka5 54. Qc5+ Ka6 55. Bxe4) 50. Bxe4 {[%emt 0:00:30]} Bf7 {[%emt 0:00:30]} 51. Bf3 {[%emt 0:00:30]} Ka4 {[%emt 0:00:30]} 52. Kd4 {[%emt 0:00:30]} Kb5 {[%emt 0:00:30]} 53. Ke5 {[%emt 0:00:30] aiming for Kd6.} Kc5 {[%emt 0:00:30]} 54. Be4 {[%emt 0:00:30]} Bg8 {[%emt 0:00:30]} 55. Bf3 {[%emt 0:00:30]} Bf7 {[%emt 0:00:30]} 56. Bg2 {[%emt 0:00:30]} Bg8 {[%emt 0:00:30]} 57. Bh3 {[%emt 0:00:30]} Bf7 {[%emt 0:00:30]} 58. Kf5 {[%emt 0:00:30]} Kd6 {[%emt 0:00:30]} 59. Bg2 {[%emt 0:00:30]} Be8 {[%emt 0:00:30]} 60. Bf3 {[%emt 0:00:30]} Bf7 {[%emt 0:00:30] Weighted Error Value: White=0.08 (flawless) /Black=0.09 (flawless)} 1/2-1/2

[Event "XLIV Barbera del Valles-A 2022"]
[Site "Barbera del Valles"]
[Date "2022.07.06"]
[Round "3.7"]
[White "Valenzuela Gomez, Fernando"]
[Black "Nagare Akhilesh"]
[Result "1/2-1/2"]
[ECO "B57"]
[WhiteElo "2373"]
[BlackElo "1856"]
[Annotator "TA"]
[PlyCount "74"]
[EventDate "2022.07.04"]
[EventType "swiss"]
[EventCountry "ESP"]
[SourceTitle "playchess.com"]
[Source "ChessBase"]
[SourceQuality "1"]
[TimeControl "5400+30"]

{[%evp 13,74,19,18,7,22,0,23,23,33,25,43,13,41,22,25,30,19,27,38,37,54,54,34,25,34,0,0,25,129,0,0,0,154,163,178,176,245,176,138,43,284,217,391,363,400,393,393,387,357,135,117,0,0,-92,-87,-81,-69,-55,0,-197,0,-66,0]} 1. e4 {[%emt 0:24:53]} c5 {[%emt 0:00:17]} 2. Nf3 {[%emt 0:00:02]} d6 {[%emt 0:00:08]} 3. d4 {[%emt 0:00:06]} cxd4 {[%emt 0:00:04]} 4. Nxd4 {[%emt 0:00:08]} Nf6 {[%emt 0:00:03]} 5. Nc3 {[%emt 0:00:04]} Nc6 {[%emt 0:00:03]} 6. Bc4 {[%emt 0:00:06]} Qb6 {[%emt 0:00:14]} 7. Nxc6 {[%emt 0:00:16]} bxc6 {[%emt 0:00:06]} 8. Bb3 {[%emt 0:00:28] B57: Classical Sicilian: Sozin with 6...Qb6.} g6 {[%emt 0:01:01]} 9. Be3 {[%emt 0:00:19]} Qc7 {[%emt 0:07:24]} 10. Qd2 {[%emt 0:00:40] White has an edge.} Bg7 {[%emt 0:00:55]} 11. Bh6 {[%emt 0:00:47] [#]} O-O $146 {[%emt 0:00:35]} ({Predecessor:} 11... Bxh6 12. Qxh6 Qa5 13. O-O-O Be6 14. Kb1 Rg8 15. Qe3 g5 16. g3 g4 17. h3 h5 18. hxg4 hxg4 {0-1 (65) Donchenko,A (2636)-Kramer,J (2423) Terme Catez 2022}) 12. O-O-O {[%emt 0:01:47]} Be6 {[%emt 0:23:17]} 13. Bxg7 {[%emt 0:03:20]} Kxg7 {[%emt 0:01:52]} 14. Rhe1 {[%emt 0:22:13]} Bxb3 {[%emt 0:05:54]} 15. axb3 {[%emt 0:00:30]} Rfd8 {[%emt 0:02:19]} 16. f4 {[%emt 0:04:30]} Qa5 {[%emt 0:13:07]} 17. Kb1 {[%emt 0:01:09]} Rab8 {[%emt 0:00:58]} 18. Qf2 {[%emt 0:05:18]} e6 {[%emt 0:04:56]} 19. Rd4 {[%emt 0:04:41]} (19. f5 $5) 19... d5 {[%emt 0:04:12]} 20. e5 {[%emt 0:05:31]} Ne8 {[%emt 0:09:33]} (20... Nd7 $11) 21. f5 {[%emt 0:00:36]} (21. g4 $1 $16) 21... exf5 $11 {[%emt 0:05:40]} 22. g4 {[%emt 0:00:11]} c5 $2 {[%emt 0:07:59]} (22... fxg4 $1 $11 23. Rf4 (23. Rf1 Rb7 $11) 23... Rb7) 23. Ra4 {[%emt 0:01:21]} Qb6 {[%emt 0:00:59]} 24. gxf5 {[%emt 0:00:24] Hoping for Rh4.} d4 {[%emt 0:00:29]} (24... c4 $142 25. f6+ Kg8 26. Qxb6 axb6 27. bxc4 dxc4 28. Rxc4 Kf8) 25. fxg6 {[%emt 0:02:46]} hxg6 {[%emt 0:00:33]} 26. e6 {[%emt 0:09:54] White is more active.} (26. Rf1 $6 Rb7 27. Ne4 Rd5 $14) ({White should try} 26. Ne4 $16 {And now Ng5 would win.} Rb7 27. Qd2) 26... f6 {[%emt 0:01:17]} ({Better is} 26... Nf6 $1 $14) 27. Ne4 {[%emt 0:02:26] Black must now prevent Rg1.} Rd5 $2 {[%emt 0:00:14]} (27... d3 {might work better.} 28. Nxc5 d2) 28. Rg1 $18 {[%emt 0:00:56]} d3 {[%emt 0:05:14]} 29. cxd3 {[%emt 0:00:42]} Rb7 {[%emt 0:02:58]} 30. Qg2 {[%emt 0:02:39]} Qxb3 {[%emt 0:01:50] [#]} 31. Qxg6+ $2 {[%emt 0:01:35] The board is on fire.} (31. Ra3 $1 $18 {[%mdl 512] and the rest is easy.} Qxa3 32. Qxg6+ Kf8 33. Qg8+ Ke7 34. Qf7+ Kd8 35. Qxb7 Qxd3+ 36. Ka1 Qxe4 37. e7+ Qxe7 38. Qxd5+ Qd7 39. Qxc5 Qa4+ 40. Kb1) 31... Kf8 $16 {[%emt 0:00:01][%csl Gb7][%cal Rb3b2]} 32. e7+ {[%emt 0:04:29]} (32. Ra2 $6 Qxd3+ 33. Kc1 (33. Ka1 $2 Qd1+ 34. Rxd1 Rxd1#) 33... Qe3+ 34. Kb1 Qd3+ 35. Kc1 (35. Ka1 $2 Qd1+ 36. Rxd1 Rxd1#) 35... Qe3+ 36. Kb1 Qd3+ $11) (32. Qh6+ $1 $16 Ke7 33. Rg7+ $1 Nxg7 34. Qxg7+ Kd8 35. e7+ Rxe7 36. Qh8+ Re8 37. Qxf6+ Re7 38. Nxc5 $1) 32... Kxe7 $11 {[%emt 0:00:05][%csl Gb7][%cal Rb3b2]} 33. Ra2 {[%emt 0:00:54]} (33. Qg2 $1 $11) 33... Qxd3+ $17 {[%emt 0:00:02]} 34. Kc1 {[%emt 0:00:01]} (34. Ka1 $2 Qd1+ $3 {[%mdl 512]} 35. Rxd1 Rxd1#) 34... Qe3+ {[%emt 0:01:43]} 35. Kb1 {[%emt 0:00:17]} Qd3+ {[%emt 0:00:01]} (35... f5 $15 36. Qg5+ (36. Ra4 $2 Qd3+ 37. Ka1 Qc2 $19) 36... Qxg5 37. Nxg5 Nd6) 36. Kc1 $19 {[%emt 0:00:06] [#]} (36. Ka1 $2 {leads to mate.} Qd1+ $3 {[%mdl 512]} 37. Rxd1 Rxd1#) 36... Qe3+ {[%emt 0:01:44]} (36... Kd8 $1 $19 37. Nxf6 Qxg6 38. Rxg6 Rd6) 37. Kb1 $15 {[%emt 0:00:07]} Qd3+ {[%emt 0:00:16] Black defended with fortune.  Weighted Error Value: White=0.37/Black=0.47} ({Black should play} 37... Qf3 $15 38. Rc1 (38. Qh7+ $2 Kd8 $19) 38... Rd1 39. Nxc5 (39. Qh7+ $2 Kd8 $19) 39... Rxc1+ 40. Kxc1 Qh1+ 41. Kc2 Qxh2+ 42. Kb1 Qh1+ 43. Kc2 Rc7) 1/2-1/2

[Event "XLIV Barbera del Valles-A 2022"]
[Site "Barbera del Valles"]
[Date "2022.07.06"]
[Round "3.8"]
[White "Lozano Casasayas, Marc"]
[Black "Alvarez Albiol, Victor"]
[Result "0-1"]
[ECO "B48"]
[WhiteElo "1822"]
[BlackElo "2367"]
[Annotator "TA"]
[PlyCount "65"]
[EventDate "2022.07.04"]
[EventType "swiss"]
[EventCountry "ESP"]
[SourceTitle "playchess.com"]
[Source "ChessBase"]
[SourceQuality "1"]
[TimeControl "5400+30"]

{[%evp 11,65,19,37,12,12,19,47,0,-2,0,-11,-1,4,-44,-43,-50,-67,-98,-87,-117,-90,-41,-41,-12,0,0,0,0,0,0,0,-60,-37,-47,-49,-39,-48,-80,-93,-60,-56,-65,-25,-89,-89,-101,-83,-131,-138,-1073,-1072,-1070,-1067,-1050,-1051,-1000]} 1. e4 {[%emt 0:00:22]} c5 {[%emt 0:00:06]} 2. Nf3 {[%emt 0:00:05]} e6 {[%emt 0:00:04]} 3. d4 {[%emt 0:00:05]} cxd4 {[%emt 0:00:04]} 4. Nxd4 {[%emt 0:00:07]} Nc6 {[%emt 0:00:03]} 5. Nc3 {[%emt 0:00:05]} Qc7 {[%emt 0:00:14]} 6. Be3 {[%emt 0:00:07]} a6 {[%emt 0:00:08]} 7. g4 {[%emt 0:00:24] B48: Sicilian: Taimanov: 5 Nc3 Qc7 6 Be3 a6 without Be2.} b5 {[%emt 0:04:14]} 8. Nxc6 {[%emt 0:01:21]} Qxc6 {[%emt 0:00:38]} 9. f3 {[%emt 0:00:28]} (9. a3 $14 {might be stronger.}) 9... Bb7 $11 {[%emt 0:01:31]} 10. Qd2 {[%emt 0:01:46]} b4 {[%emt 0:04:57]} 11. Ne2 {[%emt 0:01:04]} d5 {[%emt 0:03:09]} 12. Nd4 {[%emt 0:09:09]} (12. e5 $11 {is superior.}) 12... Qc7 $1 $15 {[%emt 0:00:26] [#]} 13. Bd3 $146 {[%emt 0:09:16]} ({Predecessor:} 13. exd5 Bxd5 14. O-O-O Nf6 15. g5 Nd7 16. Bg2 Bc5 17. Nf5 O-O 18. Bxc5 Nxc5 19. Qd4 exf5 20. Qxd5 {0-1 (38) Pham,K (2244)-Grutter,T (2234) Hilversum 2022}) 13... dxe4 {[%emt 0:03:26]} 14. fxe4 {[%emt 0:03:34]} Nf6 {[%emt 0:01:10][%csl LRe4,LRg4]} 15. Qg2 {[%emt 0:03:31]} Qe5 {[%emt 0:11:18] And now ...Bc5 would win.} 16. Nf3 {[%emt 0:00:29][%cal Bd4f3,Bf3d2,Bd2c4][%mdl 32]} Qa5 {[%emt 0:03:38]} 17. Nd2 {[%emt 0:04:36]} Be7 {[%emt 0:06:20]} 18. g5 {[%emt 0:02:55]} Nd7 {[%emt 0:00:36]} 19. Nc4 {[%emt 0:06:05]} Qc7 {[%emt 0:00:45]} 20. O-O-O {[%emt 0:04:38]} O-O {[%emt 0:01:17]} 21. Rhg1 {[%emt 0:02:51]} ({Better is} 21. Kb1 $11) 21... a5 {[%emt 0:09:15]} 22. h4 {[%emt 0:04:17]} a4 {[%emt 0:09:54]} 23. h5 {[%emt 0:03:05]} b3 {[%emt 0:02:16]} 24. g6 {[%emt 0:02:40]} fxg6 {[%emt 0:00:48]} 25. hxg6 {[%emt 0:01:00]} h6 {[%emt 0:02:47]} 26. Kb1 {[%emt 0:14:47]} bxc2+ {[%emt 0:03:13]} 27. Qxc2 {[%emt 0:00:50]} (27. Bxc2 $11 Rad8 28. Nd2) 27... Nc5 $17 {[%emt 0:02:13]} 28. Na3 {[%emt 0:09:16]} Rf3 {[%emt 0:05:21][%cal Bf8f3,Bf3f2,Bf2e2][%mdl 32]} 29. Bxc5 {[%emt 0:04:11]} (29. Qe2 $142 Raf8 30. Nb5) 29... Qxc5 {[%emt 0:01:02]} ({Not} 29... Bxc5 30. Rge1 $17) 30. Qe2 $2 {[%emt 0:03:31][%mdl 8192] [#] Loses the game.} (30. Rge1 $17) 30... Rf2 $19 {[%emt 0:01:22] Black is clearly winning.} 31. Rc1 {[%emt 0:01:07]} Rxe2 {[%emt 0:03:38]} 32. Rxc5 {[%emt 0:00:04]} Bxc5 {[%emt 0:20:37] This bishop pair is nice.} 33. Rd1 {[%emt 0:09:14] Prevents Rd2.  Weighted Error Value: White=0.38/Black=0.05 (flawless)} 0-1

[Event "XLIV Barbera del Valles-A 2022"]
[Site "Barbera del Valles"]
[Date "2022.07.07"]
[Round "4.1"]
[White "Asis Gargatagli, Hipolito"]
[Black "Rios, Cristhian Camilo"]
[Result "1/2-1/2"]
[ECO "B06"]
[WhiteElo "2514"]
[BlackElo "2399"]
[Annotator "TA"]
[PlyCount "27"]
[EventDate "2022.07.04"]
[EventType "swiss"]
[EventCountry "ESP"]
[SourceTitle "playchess.com"]
[Source "ChessBase"]
[SourceQuality "1"]
[TimeControl "5400+30"]

{[%evp 9,27,18,26,16,32,15,43,51,33,40,47,31,29,27,27,24,20,20,26,15]} 1. e4 {[%emt 0:00:03]} c5 {[%emt 0:00:28]} 2. c3 {[%emt 0:00:08]} d5 {[%emt 0:00:30]} 3. exd5 {[%emt 0:00:06]} Qxd5 {[%emt 0:00:09]} 4. d4 {[%emt 0:00:06]} g6 {[%emt 0:02:26]} 5. Nf3 {[%emt 0:00:27]} Bg7 {[%emt 0:00:30]} 6. Nbd2 {[%emt 1:32:40] Strongly threatening Bc4. B06: Modern Defence.} cxd4 {[%emt 0:02:14]} 7. Bc4 {[%emt 0:00:00]} Qa5 {[%emt 0:01:26]} 8. Nxd4 {[%emt 0:00:00] White is slightly better.} Nf6 {[%emt 0:04:09]} 9. O-O {[%emt 0:00:00]} O-O {[%emt 0:00:29]} 10. Re1 {[%emt 0:00:00] [#]} Qc7 $146 {[%emt 0:07:00]} ({Predecessor:} 10... Nc6 11. Nxc6 bxc6 12. Rxe7 Qc5 13. Re1 Bf5 14. Bf1 Ng4 15. Qf3 Rfe8 16. Rxe8+ Rxe8 {½-½ (35) Kalaitzoglou,P (2061)-Karousos Theodorakis,N (2153) Achaia 2017}) 11. Qe2 {[%emt 0:00:00]} Nc6 {[%emt 1:16:39]} 12. Nxc6 {[%emt 0:00:00]} Qxc6 {[%emt 0:00:30]} 13. Bb5 {[%emt 0:00:00]} ({Don't play} 13. Qxe7 {[#]} Bh3 $1 {[%mdl 512]} 14. gxh3 Rae8 $17) 13... Qb6 {[%emt 0:00:00]} 14. Ba4 {[%emt 0:00:00] Weighted Error Value: White=0.04 (flawless) /Black=0.07 (flawless)} 1/2-1/2